[Event "29. Klatovy A 2023"]
[Site "Klatovy"]
[Date "2023.07.08"]
[Round "8.2"]
[White "Neuman, Petr"]
[Black "Slovak, Kilian"]
[Result "1-0"]
[ECO "E62"]
[WhiteElo "2398"]
[BlackElo "2297"]
[PlyCount "39"]
[EventDate "2023.07.01"]
[EventType "swiss"]
[EventRounds "9"]
[EventCountry "CZE"]
[TimeControl "120+30"]

1. d4 {[%emt 0:00:08]} Nf6 {[%emt 0:00:07]} 2. c4 {[%emt 0:00:11]} g6 {[%emt 0:00:06]} 3. g3 {[%emt 0:00:20]} Bg7 {[%emt 0:00:09]} 4. Bg2 {[%emt 0:00:08]} d6 {[%emt 0:00:10]} 5. Nf3 {[%emt 0:00:20]} O-O {[%emt 0:00:12]} 6. Nc3 {[%emt 0:00:17]} Nc6 {[%emt 0:00:10]} 7. O-O {[%emt 0:00:17]} e5 {[%emt 0:00:12]} 8. dxe5 {[%emt 0:00:23]} dxe5 {[%emt 0:00:10]} 9. Bg5 {[%emt 0:00:23]} Be6 {[%emt 0:00:24]} 10. Qc1 {[%emt 0:00:22]} Qc8 {[%emt 0:02:06]} 11. Bxf6 {[%emt 0:04:03]} Bxf6 {[%emt 0:01:25]} 12. Nd5 {[%emt 0:00:13]} Bxd5 {[%emt 0:17:59]} 13. cxd5 {[%emt 0:00:05]} Nd4 {[%emt 0:00:32]} 14. Qc4 {[%emt 0:01:56]} Qd7 {[%emt 0:33:11]} 15. Rac1 {[%emt 0:06:18]} Rac8 {[%emt 0:08:04]} 16. Nd2 {[%emt 0:18:38]} c6 {[%emt 0:06:21]} 17. Ne4 {[%emt 0:03:54]} Bg7 {[%emt 0:01:51]} 18. Nc5 {[%emt 0:13:42]} cxd5 {[%emt 0:07:26]} 19. Qxd4 {[%emt 0:02:28]} Qb5 {[%emt 0:11:02]} 20. a4 {[%emt 0:01:53]} 1-0

[Event "29. Klatovy A 2023"]
[Site "Klatovy"]
[Date "2023.07.08"]
[Round "8.3"]
[White "Hurdzan, Tomas"]
[Black "Jun, Rudolf"]
[Result "1-0"]
[ECO "A20"]
[WhiteElo "2309"]
[BlackElo "2223"]
[PlyCount "87"]
[EventDate "2023.07.01"]
[EventType "swiss"]
[EventRounds "9"]
[EventCountry "CZE"]
[TimeControl "120+30"]

1. c4 {[%emt 0:00:09]} e5 {[%emt 0:00:10]} 2. g3 {[%emt 0:01:18]} Nf6 {[%emt 0:00:30]} 3. Bg2 {[%emt 0:00:07]} d5 {[%emt 0:00:48]} 4. cxd5 {[%emt 0:00:10]} Nxd5 {[%emt 0:00:08]} 5. Nf3 {[%emt 0:01:34]} Nc6 {[%emt 0:00:54]} 6. O-O {[%emt 0:01:01]} Be6 {[%emt 0:01:37]} 7. d4 {[%emt 0:09:22]} exd4 {[%emt 0:01:40]} 8. Nxd4 {[%emt 0:00:20]} Nxd4 {[%emt 0:00:55]} 9. Qxd4 {[%emt 0:00:04]} c6 {[%emt 0:00:38]} 10. Nc3 {[%emt 0:09:53]} Qf6 {[%emt 0:19:22]} 11. Qa4 {[%emt 0:07:30]} Nb6 {[%emt 0:02:13]} 12. Qc2 {[%emt 0:01:12]} Be7 {[%emt 0:03:35]} 13. b3 {[%emt 0:12:13]} O-O {[%emt 0:02:58]} 14. e4 {[%emt 0:03:13]} Bc5 {[%emt 0:18:29]} 15. Bf4 {[%emt 0:04:45]} Bd4 {[%emt 0:06:02]} 16. Rac1 {[%emt 0:00:24]} Be5 {[%emt 0:10:16]} 17. Be3 {[%emt 0:00:55]} Bd4 {[%emt 0:02:05]} 18. Bxd4 {[%emt 0:19:13]} Qxd4 {[%emt 0:00:38]} 19. Ne2 {[%emt 0:00:19]} Qb4 {[%emt 0:01:56]} 20. Nf4 {[%emt 0:01:02]} Rad8 {[%emt 0:04:08]} 21. Rcd1 {[%emt 0:07:44]} Bg4 {[%emt 0:02:14]} 22. Rd3 {[%emt 0:01:41]} Rxd3 {[%emt 0:07:28]} 23. Nxd3 {[%emt 0:01:03]} Qe7 {[%emt 0:01:16]} 24. Nc5 {[%emt 0:00:58]} Rd8 {[%emt 0:01:09]} 25. Qc3 {[%emt 0:13:00]} h6 {[%emt 0:16:47]} 26. Re1 {[%emt 0:00:26]} f6 {[%emt 0:07:26]} 27. h3 {[%emt 0:08:24]} Be6 {[%emt 0:01:06]} 28. e5 {[%emt 0:05:31]} f5 {[%emt 0:01:26]} 29. Nxe6 {[%emt 0:00:04]} Qxe6 {[%emt 0:00:07]} 30. Qa5 {[%emt 0:00:23]} Qe7 {[%emt 0:06:14]} 31. e6 {[%emt 0:05:21]} Nd5 {[%emt 0:03:36]} 32. Qxa7 {[%emt 0:00:08]} Rd6 {[%emt 0:00:53]} 33. Bxd5 {[%emt 0:05:20]} Rxd5 {[%emt 0:03:13]} 34. Qb8+ {[%emt 0:00:57]} Kh7 {[%emt 0:00:50]} 35. a4 {[%emt 0:00:48]} Kg6 {[%emt 0:01:55]} 36. Qf4 {[%emt 0:00:50]} Kh7 {[%emt 0:01:08]} 37. h4 {[%emt 0:00:48]} Kg8 {[%emt 0:02:22]} 38. h5 {[%emt 0:00:32]} Kf8 {[%emt 0:00:23]} 39. Re5 {[%emt 0:01:35]} Qf6 {[%emt 0:00:46]} 40. Rxd5 {[%emt 0:01:41]} cxd5 {[%emt 0:00:06]} 41. Qb8+ {[%emt 0:01:49]} Ke7 {[%emt 0:00:04]} 42. Qxb7+ {[%emt 0:00:04]} Kxe6 {[%emt 0:00:06]} 43. Qc6+ {[%emt 0:00:04]} Ke5 {[%emt 0:00:05]} 44. Qxf6+ {[%emt 0:00:17]} 1-0

[Event "29. Klatovy A 2023"]
[Site "Klatovy"]
[Date "2023.07.08"]
[Round "8.4"]
[White "Soural, Jan"]
[Black "Jurek, Josef"]
[Result "1/2-1/2"]
[ECO "A30"]
[WhiteElo "2176"]
[BlackElo "2251"]
[PlyCount "48"]
[EventDate "2023.07.01"]
[EventType "swiss"]
[EventRounds "9"]
[EventCountry "CZE"]
[TimeControl "120+30"]

1. c4 {[%emt 20:50:52]} Nf6 {[%emt 0:00:19]} 2. Nf3 {[%emt 0:00:19]} c5 {[%emt 0:01:07]} 3. Nc3 {[%emt 0:01:24]} b6 {[%emt 0:00:33]} 4. g3 {[%emt 0:02:09]} Bb7 {[%emt 0:00:29]} 5. Bg2 {[%emt 0:00:06]} g6 {[%emt 0:03:21]} 6. b3 {[%emt 0:01:01]} Bg7 {[%emt 0:00:35]} 7. Bb2 {[%emt 0:00:08]} O-O {[%emt 0:01:11]} 8. O-O {[%emt 0:00:09]} Na6 {[%emt 0:02:26]} 9. Rc1 {[%emt 0:21:35]} e6 {[%emt 0:03:18]} 10. d4 {[%emt 0:14:19]} d5 {[%emt 0:02:27]} 11. cxd5 {[%emt 0:02:44]} Nxd5 {[%emt 0:02:49]} 12. Nxd5 {[%emt 0:03:11]} Bxd5 {[%emt 0:01:47]} 13. Ba1 {[%emt 0:26:53]} Qe7 {[%emt 0:09:06]} 14. dxc5 {[%emt 0:04:12]} Bxa1 {[%emt 0:01:13]} 15. Rxa1 {[%emt 0:00:04]} Nxc5 {[%emt 0:00:59]} 16. Rc1 {[%emt 0:00:24]} Rfd8 {[%emt 0:05:20]} 17. Qc2 {[%emt 0:00:35]} Qf6 {[%emt 0:06:32]} 18. h4 {[%emt 0:23:28]} a5 {[%emt 0:04:11]} 19. Ng5 {[%emt 0:03:07]} Bxg2 {[%emt 0:01:12]} 20. Kxg2 {[%emt 0:00:06]} Qe5 {[%emt 0:15:44]} 21. Rfd1 {[%emt 0:01:28]} h6 {[%emt 0:07:40]} 22. Nf3 {[%emt 0:00:17]} Qf6 {[%emt 0:01:33]} 23. Rxd8+ {[%emt 0:01:37]} Rxd8 {[%emt 0:00:50]} 24. Rd1 {[%emt 0:00:09]} Kg7 {[%emt 0:02:56]} 1/2-1/2

[Event "29. Klatovy A 2023"]
[Site "Klatovy"]
[Date "2023.07.08"]
[Round "8.5"]
[White "Dvorak, Jan"]
[Black "Vorisek, Jaroslav"]
[Result "1/2-1/2"]
[ECO "A81"]
[WhiteElo "2176"]
[BlackElo "2260"]
[PlyCount "56"]
[EventDate "2023.07.01"]
[EventType "swiss"]
[EventRounds "9"]
[EventCountry "CZE"]
[TimeControl "120+30"]

1. d4 {[%emt 0:00:06]} f5 {[%emt 0:00:23]} 2. Nf3 {[%emt 0:00:47]} Nf6 {[%emt 0:00:13]} 3. g3 {[%emt 0:00:17]} g6 {[%emt 0:00:21]} 4. Bg2 {[%emt 0:00:17]} Bg7 {[%emt 0:00:17]} 5. O-O {[%emt 0:00:43]} O-O {[%emt 0:00:09]} 6. b3 {[%emt 0:00:57]} c5 {[%emt 0:07:17]} 7. e3 {[%emt 0:04:58]} Nc6 {[%emt 0:08:23]} 8. Bb2 {[%emt 0:09:19]} Ne4 {[%emt 0:07:20]} 9. c4 {[%emt 0:05:34]} d6 {[%emt 0:13:17]} 10. Nc3 {[%emt 0:12:17]} e6 {[%emt 0:30:35]} 11. Qe2 {[%emt 0:30:34]} cxd4 {[%emt 0:13:48]} 12. exd4 {[%emt 0:02:46]} d5 {[%emt 0:01:59]} 13. Rfd1 {[%emt 0:01:47]} b6 {[%emt 0:04:12]} 14. Nxe4 {[%emt 0:09:35]} fxe4 {[%emt 0:07:31]} 15. Ne5 {[%emt 0:01:05]} Bb7 {[%emt 0:00:10]} 16. f3 {[%emt 0:02:39]} Nxe5 {[%emt 0:16:59]} 17. dxe5 {[%emt 0:03:49]} Qe7 {[%emt 0:01:32]} 18. fxe4 {[%emt 0:02:50]} dxc4 {[%emt 0:00:06]} 19. Qxc4 {[%emt 0:08:22]} Rac8 {[%emt 0:00:06]} 20. Qe2 {[%emt 0:00:09]} Rfd8 {[%emt 0:02:28]} 21. Rxd8+ {[%emt 0:12:01]} Rxd8 {[%emt 0:00:12]} 22. Qe3 {[%emt 0:00:24]} Qd7 {[%emt 0:08:10]} 23. Bh3 {[%emt 0:05:00]} Bf8 {[%emt 0:00:04]} 24. Qe2 {[%emt 0:03:53]} Bc5+ {[%emt 0:01:56]} 25. Kh1 {[%emt 0:00:04]} Qc6 {[%emt 0:03:29]} 26. Bg2 {[%emt 0:00:20]} Rf8 {[%emt 0:00:15]} 27. Rf1 {[%emt 0:00:49]} Rxf1+ {[%emt 0:00:06]} 28. Qxf1 {[%emt 0:00:03]} Qxe4 {[%emt 0:00:29]} 1/2-1/2

[Event "29. Klatovy A 2023"]
[Site "Klatovy"]
[Date "2023.07.08"]
[Round "8.6"]
[White "Flajsman, Pavel"]
[Black "Janous, Marek"]
[Result "1/2-1/2"]
[ECO "D36"]
[WhiteElo "2192"]
[BlackElo "2185"]
[PlyCount "146"]
[EventDate "2023.07.01"]
[EventType "swiss"]
[EventRounds "9"]
[EventCountry "CZE"]
[TimeControl "120+30"]

1. d4 {[%emt 0:00:04]} Nf6 {[%emt 0:00:37]} 2. c4 {[%emt 0:00:11]} e6 {[%emt 0:02:34]} 3. Nc3 {[%emt 0:06:03]} d5 {[%emt 0:00:26]} 4. cxd5 {[%emt 0:00:05]} exd5 {[%emt 0:00:05]} 5. Bg5 {[%emt 0:00:06]} Be7 {[%emt 0:01:04]} 6. e3 {[%emt 0:00:13]} c6 {[%emt 0:00:24]} 7. Bd3 {[%emt 0:00:13]} Nbd7 {[%emt 0:01:00]} 8. Qc2 {[%emt 0:00:37]} O-O {[%emt 0:00:58]} 9. Nge2 {[%emt 0:09:16]} Re8 {[%emt 0:00:41]} 10. h3 {[%emt 0:04:39]} Nf8 {[%emt 0:02:27]} 11. g4 {[%emt 0:10:31]} g6 {[%emt 0:20:23]} 12. O-O-O {[%emt 0:39:53]} b5 {[%emt 0:13:31]} 13. Ng3 {[%emt 0:00:38]} a5 {[%emt 0:15:45]} 14. Rdg1 {[%emt 0:00:28]} b4 {[%emt 0:04:06]} 15. Na4 {[%emt 0:01:54]} c5 {[%emt 0:05:48]} 16. Bxf6 {[%emt 0:08:42]} Bxf6 {[%emt 0:00:07]} 17. Nxc5 {[%emt 0:00:04]} Ne6 {[%emt 0:00:12]} 18. Nxe6 {[%emt 0:01:53]} Bxe6 {[%emt 0:00:02]} 19. Qd2 {[%emt 0:02:44]} Qb6 {[%emt 0:01:34]} 20. Kb1 {[%emt 0:01:23]} Bd7 {[%emt 0:03:58]} 21. Rc1 {[%emt 0:04:32]} Rac8 {[%emt 0:04:11]} 22. Ne2 {[%emt 0:10:58]} Qd6 {[%emt 0:05:08]} 23. Rxc8 {[%emt 0:07:36]} Rxc8 {[%emt 0:01:05]} 24. Ng1 {[%emt 0:00:11]} Qe6 {[%emt 0:19:16]} 25. Nf3 {[%emt 0:01:26]} Bb5 {[%emt 0:05:43]} 26. Rg1 {[%emt 0:06:14]} Qe8 {[%emt 0:04:15]} 27. Rc1 {[%emt 0:05:21]} Rxc1+ {[%emt 0:01:14]} 28. Kxc1 {[%emt 0:00:01]} Bxd3 {[%emt 0:00:31]} 29. Qxd3 {[%emt 0:00:01]} Qc6+ {[%emt 0:06:03]} 30. Kb1 {[%emt 0:00:39]} a4 {[%emt 0:02:01]} 31. Nd2 {[%emt 0:00:30]} Bd8 {[%emt 0:03:42]} 32. f4 {[%emt 0:01:59]} Ba5 {[%emt 0:01:44]} 33. Nf3 {[%emt 0:01:30]} Qb7 {[%emt 0:01:11]} 34. Kc2 {[%emt 0:02:43]} Bc7 {[%emt 0:03:17]} 35. Nd2 {[%emt 0:01:04]} Ba5 {[%emt 0:00:08]} 36. b3 {[%emt 0:00:48]} a3 {[%emt 0:00:33]} 37. Nf3 {[%emt 0:00:06]} Bc7 {[%emt 0:00:05]} 38. Kd2 {[%emt 0:00:11]} Bd6 {[%emt 0:00:25]} 39. Qc2 {[%emt 0:00:14]} Qd7 {[%emt 0:01:00]} 40. Ke2 {[%emt 0:01:19]} h5 {[%emt 0:00:52]} 41. Nh2 {[%emt 0:00:27]} Kg7 {[%emt 0:00:26]} 42. Kf3 {[%emt 0:00:25]} hxg4+ {[%emt 0:02:21]} 43. hxg4 {[%emt 0:00:04]} Qe7 {[%emt 0:00:20]} 44. g5 {[%emt 0:00:35]} f5 {[%emt 0:00:41]} 45. gxf6+ {[%emt 0:01:32]} Qxf6 {[%emt 0:00:01]} 46. Ng4 {[%emt 0:00:08]} Qh4 {[%emt 0:00:25]} 47. Qh2 {[%emt 0:01:17]} Qe1 {[%emt 0:01:07]} 48. Qh6+ {[%emt 0:00:09]} Kf7 {[%emt 0:00:04]} 49. Qh7+ {[%emt 0:00:05]} Kf8 {[%emt 0:00:10]} 50. Qh8+ {[%emt 0:03:09]} Ke7 {[%emt 0:00:30]} 51. Qg7+ {[%emt 0:00:23]} Kd8 {[%emt 0:00:04]} 52. Qf6+ {[%emt 0:00:39]} Kc7 {[%emt 0:00:13]} 53. Qf7+ {[%emt 0:00:29]} Kd8 {[%emt 0:01:18]} 54. Qg8+ {[%emt 0:00:29]} Kc7 {[%emt 0:00:04]} 55. Qf7+ {[%emt 0:00:26]} Kd8 {[%emt 0:00:32]} 56. Nf2 {[%emt 0:00:11]} Qb1 {[%emt 0:00:19]} 57. Qxd5 {[%emt 0:00:06]} Kd7 {[%emt 0:00:19]} 58. Ne4 {[%emt 0:01:24]} Qh1+ {[%emt 0:00:17]} 59. Kg3 {[%emt 0:00:25]} Qe1+ {[%emt 0:01:35]} 60. Kg4 {[%emt 0:00:29]} Qe2+ {[%emt 0:00:21]} 61. Kh4 {[%emt 0:00:26]} Qh2+ {[%emt 0:00:10]} 62. Kg4 {[%emt 0:00:03]} Qe2+ {[%emt 0:00:05]} 63. Kh3 {[%emt 0:01:07]} Qxe3+ {[%emt 0:01:24]} 64. Kg2 {[%emt 0:00:25]} Qe2+ {[%emt 0:01:01]} 65. Kg3 {[%emt 0:00:13]} Qe1+ {[%emt 0:00:21]} 66. Kg4 {[%emt 0:00:54]} Qd1+ {[%emt 0:00:22]} 67. Kg3 {[%emt 0:00:33]} Qg1+ {[%emt 0:00:11]} 68. Kf3 {[%emt 0:00:30]} Qh1+ {[%emt 0:00:11]} 69. Ke2 {[%emt 0:00:30]} Qg2+ {[%emt 0:00:30]} 70. Ke3 {[%emt 0:00:05]} Qg1+ {[%emt 0:00:41]} 71. Kf3 {[%emt 0:00:58]} Qh1+ {[%emt 0:00:38]} 72. Ke3 {[%emt 0:00:04]} Qe1+ {[%emt 0:00:18]} 73. Kd3 {[%emt 0:00:49]} Qf1+ {[%emt 0:00:08]} 1/2-1/2

[Event "29. Klatovy A 2023"]
[Site "Klatovy"]
[Date "2023.07.08"]
[Round "8.8"]
[White "Pecka, Jan"]
[Black "Skypala, Ondrej"]
[Result "1/2-1/2"]
[ECO "E87"]
[WhiteElo "2054"]
[BlackElo "2163"]
[PlyCount "22"]
[EventDate "2023.07.01"]
[EventType "swiss"]
[EventRounds "9"]
[EventCountry "CZE"]
[TimeControl "120+30"]

1. d4 {[%emt 0:00:03]} Nf6 {[%emt 0:00:07]} 2. c4 {[%emt 0:00:05]} g6 {[%emt 0:00:06]} 3. Nc3 {[%emt 0:00:12]} Bg7 {[%emt 0:00:08]} 4. e4 {[%emt 0:00:06]} d6 {[%emt 0:00:04]} 5. f3 {[%emt 0:00:05]} O-O {[%emt 0:00:05]} 6. Be3 {[%emt 0:00:04]} e5 {[%emt 0:00:04]} 7. d5 {[%emt 0:00:07]} Nh5 {[%emt 0:00:03]} 8. Qd2 {[%emt 0:00:17]} Qh4+ {[%emt 0:00:04]} 9. Bf2 {[%emt 0:00:08]} Qf4 {[%emt 0:00:05]} 10. Be3 {[%emt 0:00:04]} Qh4+ {[%emt 0:00:03]} 11. Bf2 {[%emt 0:00:10]} Qf4 {[%emt 0:00:04]} 1/2-1/2

[Event "29. Klatovy A 2023"]
[Site "Klatovy"]
[Date "2023.07.08"]
[Round "8.9"]
[White "Jordanov, Mihail"]
[Black "Palek, Miroslav"]
[Result "1-0"]
[ECO "B33"]
[WhiteElo "2140"]
[BlackElo "2091"]
[PlyCount "57"]
[EventDate "2023.07.01"]
[EventType "swiss"]
[EventRounds "9"]
[EventCountry "CZE"]
[TimeControl "120+30"]

1. e4 {[%emt 0:00:06]} c5 {[%emt 0:00:14]} 2. Nf3 {[%emt 0:00:16]} Nc6 {[%emt 0:00:24]} 3. d4 {[%emt 0:00:24]} cxd4 {[%emt 0:00:14]} 4. Nxd4 {[%emt 0:00:14]} Qb6 {[%emt 0:00:34]} 5. Nb3 {[%emt 0:00:59]} Nf6 {[%emt 0:00:31]} 6. Nc3 {[%emt 0:00:46]} e6 {[%emt 0:00:06]} 7. Be3 {[%emt 0:03:52]} Qc7 {[%emt 0:00:20]} 8. a3 {[%emt 0:01:49]} Be7 {[%emt 0:01:35]} 9. f4 {[%emt 0:08:04]} d6 {[%emt 0:01:11]} 10. Qf3 {[%emt 0:00:59]} O-O {[%emt 0:01:38]} 11. O-O-O {[%emt 0:03:27]} a6 {[%emt 0:02:24]} 12. g4 {[%emt 0:02:38]} b5 {[%emt 0:01:52]} 13. g5 {[%emt 0:03:42]} Nd7 {[%emt 0:00:26]} 14. f5 {[%emt 0:04:27]} Nde5 {[%emt 0:01:31]} 15. Qf4 {[%emt 0:06:40]} Rd8 {[%emt 0:01:58]} 16. Nd4 {[%emt 0:07:09]} Rb8 {[%emt 0:12:22]} 17. h4 {[%emt 0:09:30]} b4 {[%emt 0:03:47]} 18. axb4 {[%emt 0:01:17]} Rxb4 {[%emt 0:03:30]} 19. f6 {[%emt 0:03:41]} Bf8 {[%emt 0:00:37]} 20. h5 {[%emt 0:01:10]} Nxd4 {[%emt 0:08:07]} 21. Rxd4 {[%emt 0:13:37]} a5 {[%emt 0:01:43]} 22. Nb5 {[%emt 0:11:18]} Qc6 {[%emt 0:05:09]} 23. Rxb4 {[%emt 0:06:09]} axb4 {[%emt 0:00:39]} 24. g6 {[%emt 0:00:36]} Qd7 {[%emt 0:11:53]} 25. Bb6 {[%emt 0:04:00]} gxf6 {[%emt 0:03:51]} 26. Qxf6 {[%emt 0:03:12]} Re8 {[%emt 0:04:21]} 27. Nc7 {[%emt 0:07:29]} Re7 {[%emt 0:04:47]} 28. Bb5 {[%emt 0:01:55]} Nc6 {[%emt 0:00:39]} 29. g7 {[%emt 0:01:20]} 1-0

[Event "29. Klatovy A 2023"]
[Site "Klatovy"]
[Date "2023.07.08"]
[Round "8.10"]
[White "Novotny, David"]
[Black "Folk, Petr"]
[Result "1/2-1/2"]
[ECO "B80"]
[WhiteElo "2034"]
[BlackElo "2135"]
[PlyCount "67"]
[EventDate "2023.07.01"]
[EventType "swiss"]
[EventRounds "9"]
[EventCountry "CZE"]
[TimeControl "120+30"]

1. e4 {[%emt 0:05:13]} c5 {[%emt 0:00:17]} 2. Nf3 {[%emt 0:00:14]} Nc6 {[%emt 0:00:06]} 3. d4 {[%emt 0:00:07]} cxd4 {[%emt 0:00:05]} 4. Nxd4 {[%emt 0:00:04]} e6 {[%emt 0:00:06]} 5. Nc3 {[%emt 0:02:28]} Qc7 {[%emt 0:00:12]} 6. g3 {[%emt 0:00:45]} Nf6 {[%emt 0:02:19]} 7. Bg2 {[%emt 0:03:27]} a6 {[%emt 0:00:07]} 8. Nb3 {[%emt 0:10:08]} d6 {[%emt 0:02:32]} 9. O-O {[%emt 0:02:38]} Be7 {[%emt 0:01:09]} 10. f4 {[%emt 0:01:57]} O-O {[%emt 0:07:52]} 11. g4 {[%emt 0:00:34]} d5 {[%emt 0:13:03]} 12. exd5 {[%emt 0:26:56]} Nb4 {[%emt 0:03:30]} 13. d6 {[%emt 0:08:45]} Bxd6 {[%emt 0:08:03]} 14. g5 {[%emt 0:12:16]} Nfd5 {[%emt 0:04:24]} 15. Qh5 {[%emt 0:14:52]} Bxf4 {[%emt 0:21:03]} 16. Bxd5 {[%emt 0:15:52]} Bxc1 {[%emt 0:02:46]} 17. Be4 {[%emt 0:02:34]} g6 {[%emt 0:10:42]} 18. Qh4 {[%emt 0:03:23]} Be3+ {[%emt 0:02:01]} 19. Kh1 {[%emt 0:00:02]} Qe7 {[%emt 0:03:12]} 20. Bxg6 {[%emt 0:02:31]} fxg6 {[%emt 0:08:07]} 21. Ne4 {[%emt 0:00:02]} Bd7 {[%emt 0:00:51]} 22. Na5 {[%emt 0:07:45]} Rxf1+ {[%emt 0:13:49]} 23. Rxf1 {[%emt 0:00:02]} Rf8 {[%emt 0:00:26]} 24. Rxf8+ {[%emt 0:03:27]} Kxf8 {[%emt 0:00:41]} 25. Nf6 {[%emt 0:00:23]} Nd5 {[%emt 0:01:54]} 26. Qh6+ {[%emt 0:00:24]} Qg7 {[%emt 0:00:56]} 27. Nxd7+ {[%emt 0:00:22]} Kg8 {[%emt 0:00:36]} 28. Qxg7+ {[%emt 0:01:16]} Kxg7 {[%emt 0:00:01]} 29. Nxb7 {[%emt 0:00:12]} Bxg5 {[%emt 0:02:40]} 30. Nbc5 {[%emt 0:02:13]} Nc7 {[%emt 0:00:18]} 31. b4 {[%emt 0:03:42]} Bd2 {[%emt 0:00:50]} 32. a3 {[%emt 0:00:01]} h5 {[%emt 0:00:45]} 33. c4 {[%emt 0:00:20]} g5 {[%emt 0:01:01]} 34. Nb8 {[%emt 0:00:11]} 1/2-1/2

[Event "29. Klatovy A 2023"]
[Site "Klatovy"]
[Date "2023.07.08"]
[Round "8.11"]
[White "Kopta, Pavel"]
[Black "Hladky, Tadeas"]
[Result "1/2-1/2"]
[ECO "D15"]
[WhiteElo "2209"]
[BlackElo "2046"]
[PlyCount "53"]
[EventDate "2023.07.01"]
[EventType "swiss"]
[EventRounds "9"]
[EventCountry "CZE"]
[TimeControl "120+30"]

1. d4 {[%emt 0:00:03]} d5 {[%emt 0:00:09]} 2. c4 {[%emt 0:00:10]} c6 {[%emt 0:00:07]} 3. Nf3 {[%emt 0:00:08]} Nf6 {[%emt 0:00:09]} 4. Nc3 {[%emt 0:00:11]} a6 {[%emt 0:00:11]} 5. a4 {[%emt 0:02:32]} e6 {[%emt 0:00:11]} 6. Bg5 {[%emt 0:04:20]} Nbd7 {[%emt 0:00:10]} 7. cxd5 {[%emt 0:01:32]} exd5 {[%emt 0:00:28]} 8. e3 {[%emt 0:00:42]} a5 {[%emt 0:03:46]} 9. Bd3 {[%emt 0:01:32]} Be7 {[%emt 0:00:31]} 10. Qc2 {[%emt 0:01:30]} O-O {[%emt 0:01:58]} 11. O-O {[%emt 0:01:12]} Re8 {[%emt 0:00:50]} 12. Rae1 {[%emt 0:00:51]} h6 {[%emt 0:01:23]} 13. Bf4 {[%emt 0:03:02]} Nf8 {[%emt 0:18:04]} 14. Ne5 {[%emt 0:05:24]} Be6 {[%emt 0:09:30]} 15. Bg3 {[%emt 0:01:41]} Nh5 {[%emt 0:16:30]} 16. f4 {[%emt 0:04:02]} Nxg3 {[%emt 0:03:51]} 17. hxg3 {[%emt 0:00:38]} f6 {[%emt 0:00:50]} 18. Nf3 {[%emt 0:04:26]} Bb4 {[%emt 0:01:55]} 19. f5 {[%emt 0:05:13]} Bf7 {[%emt 0:00:36]} 20. g4 {[%emt 0:00:23]} Nh7 {[%emt 0:03:30]} 21. Qf2 {[%emt 0:04:36]} Qc7 {[%emt 0:00:58]} 22. Rc1 {[%emt 0:02:06]} Re7 {[%emt 0:05:55]} 23. Rfe1 {[%emt 0:02:15]} Rae8 {[%emt 0:00:39]} 24. g3 {[%emt 0:05:26]} Nf8 {[%emt 0:10:44]} 25. Kg2 {[%emt 0:00:55]} Nd7 {[%emt 0:00:31]} 26. Re2 {[%emt 0:05:41]} Nb6 {[%emt 0:00:42]} 27. b3 {[%emt 0:01:02]} 1/2-1/2

[Event "29. Klatovy A 2023"]
[Site "Klatovy"]
[Date "2023.07.08"]
[Round "8.12"]
[White "Honcharov, Makar"]
[Black "Pirklova, Hana"]
[Result "1-0"]
[ECO "C54"]
[WhiteElo "1696"]
[BlackElo "2085"]
[PlyCount "77"]
[EventDate "2023.07.01"]
[EventType "swiss"]
[EventRounds "9"]
[EventCountry "CZE"]
[TimeControl "120+30"]

1. e4 {[%emt 0:00:02]} e5 {[%emt 0:00:04]} 2. Nf3 {[%emt 0:00:04]} Nc6 {[%emt 0:00:06]} 3. Bc4 {[%emt 0:00:06]} Bc5 {[%emt 0:00:05]} 4. c3 {[%emt 0:00:04]} Nf6 {[%emt 0:00:26]} 5. d4 {[%emt 0:00:05]} exd4 {[%emt 0:00:25]} 6. e5 {[%emt 0:00:05]} d5 {[%emt 0:03:51]} 7. Be2 {[%emt 0:00:07]} Ne4 {[%emt 0:03:16]} 8. cxd4 {[%emt 0:00:29]} Bb6 {[%emt 0:02:06]} 9. O-O {[%emt 0:01:52]} O-O {[%emt 0:01:30]} 10. Be3 {[%emt 0:03:41]} Bg4 {[%emt 0:32:42]} 11. Nc3 {[%emt 0:03:30]} Nxc3 {[%emt 0:07:25]} 12. bxc3 {[%emt 0:04:10]} Ne7 {[%emt 0:02:47]} 13. a4 {[%emt 0:01:57]} c6 {[%emt 0:00:45]} 14. h3 {[%emt 0:01:29]} Bxf3 {[%emt 0:06:53]} 15. Bxf3 {[%emt 0:00:40]} Nf5 {[%emt 0:00:05]} 16. Bf4 {[%emt 0:00:52]} f6 {[%emt 0:04:22]} 17. Bg4 {[%emt 0:14:56]} fxe5 {[%emt 0:06:11]} 18. Bxe5 {[%emt 0:00:58]} Qg5 {[%emt 0:04:03]} 19. f4 {[%emt 0:03:25]} Qh4 {[%emt 0:00:41]} 20. Qf3 {[%emt 0:02:10]} Rae8 {[%emt 0:02:18]} 21. Kh2 {[%emt 0:09:18]} Nh6 {[%emt 0:08:12]} 22. Bd7 {[%emt 0:02:00]} Rd8 {[%emt 0:05:10]} 23. Be6+ {[%emt 0:00:46]} Kh8 {[%emt 0:00:26]} 24. a5 {[%emt 0:00:27]} Qe7 {[%emt 0:01:17]} 25. axb6 {[%emt 0:07:55]} Qxe6 {[%emt 0:00:04]} 26. Rxa7 {[%emt 0:00:53]} Nf7 {[%emt 0:04:36]} 27. Rxb7 {[%emt 0:03:16]} Nxe5 {[%emt 0:00:11]} 28. dxe5 {[%emt 0:00:37]} c5 {[%emt 0:01:44]} 29. Qg3 {[%emt 0:04:25]} g6 {[%emt 0:04:48]} 30. Qh4 {[%emt 0:03:50]} h5 {[%emt 0:06:24]} 31. Qg5 {[%emt 0:03:20]} Kg8 {[%emt 0:01:59]} 32. Qh6 {[%emt 0:16:21]} Rf7 {[%emt 0:01:19]} 33. Rxf7 {[%emt 0:00:30]} Kxf7 {[%emt 0:01:31]} 34. Ra1 {[%emt 0:02:09]} Qxb6 {[%emt 0:02:26]} 35. f5 {[%emt 0:03:32]} Rg8 {[%emt 0:02:12]} 36. Rf1 {[%emt 0:04:25]} Ke8 {[%emt 0:04:36]} 37. f6 {[%emt 0:03:10]} Rf8 {[%emt 0:01:11]} 38. Qxg6+ {[%emt 0:00:16]} Rf7 {[%emt 0:00:05]} 39. Qg8+ {[%emt 0:00:13]} 1-0